[Event "Elegant 1st Division League 2024"]
[Site "Dhaka"]
[Date "2024.07.14"]
[Round "4.20"]
[White "Shahinur, Haque"]
[Black "Md Nurul Islam, Mahin"]
[Result "1-0"]
[Annotator "NA"]
[ECO "B13"]
[WhiteElo "1833"]
[BlackElo "1833"]
[PlyCount "101"]
[EventDate "2024.07.10"]
[EventType "team-tourn"]
[EventCountry "BAN"]
[SourceTitle "playchess.com"]
[Source "ChessBase"]
[SourceQuality "1"]
[TimeControl "5400+30"]

1. e4 {[%emt 0:04:07]} c6 {[%emt 0:02:06]} 2. d4 {[%emt 0:00:25]} d5 {[%emt 0:00:06]} 3. exd5 {[%emt 0:00:38]} cxd5 {[%emt 0:00:09]} 4. Bd3 {[%emt 0:00:40]} Nc6 {[%emt 0:00:24]} 5. c3 {[%emt 0:00:16]} Nf6 {[%emt 0:00:11]} 6. Bf4 {[%emt 0:00:46]} e6 {[%emt 0:00:12]} 7. Nf3 {[%emt 0:01:10]} Bd6 {[%emt 0:00:14]} 8. Bxd6 {[%emt 0:00:35]} Qxd6 {[%emt 0:00:14]} 9. Qe2 {[%emt 0:01:46] B13: Caro-Kann: Exchange Variation and Panov-Botvinnik Attack.} O-O {[%emt 0:00:16]} 10. O-O {[%emt 0:00:13]} Re8 {[%emt 0:00:19]} 11. Ne5 {[%emt 0:02:30]} a6 {[%emt 0:08:08]} 12. Nd2 {[%emt 0:01:38]} Qe7 {[%emt 0:04:23]} 13. f4 {[%emt 0:04:19]} Nxe5 {[%emt 0:02:08]} 14. fxe5 {[%emt 0:00:43]} Nd7 {[%emt 0:00:08]} 15. Qh5 {[%emt 0:10:24]} g6 {[%emt 0:01:25]} 16. Qh6 {[%emt 0:04:51]} Qf8 {[%emt 0:00:11]} 17. Qh4 {[%emt 0:02:19]} Qg7 {[%emt 0:01:28]} 18. Rf2 {[%emt 0:07:31]} Nb8 {[%emt 0:01:11]} 19. Raf1 {[%emt 0:02:16]} Rf8 {[%emt 0:00:22]} 20. Nf3 {[%emt 0:08:40]} h6 {[%emt 0:01:04]} 21. Qe7 {[%emt 0:05:26]} Nc6 {[%emt 0:00:13]} 22. Qd6 {[%emt 0:40:17]} Rd8 {[%emt 0:00:15]} 23. Qa3 {[%emt 0:00:00]} Bd7 {[%emt 0:04:08]} 24. Nh4 {[%emt 0:00:00]} Rf8 {[%emt 0:02:16]} 25. Qd6 {[%emt 0:00:00]} Rad8 {[%emt 0:02:33]} 26. Nxg6 {[%emt 0:00:00]} Bc8 {[%emt 0:05:07]} 27. Ne7+ {[%emt 0:00:00]} Kh8 {[%emt 0:00:33]} 28. Qa3 {[%emt 0:00:00]} Nxe7 {[%emt 0:11:11]} 29. Qxe7 {[%emt 0:00:00]} Rd7 {[%emt 0:00:10]} 30. Qh4 {[%emt 0:00:00]} Rg8 {[%emt 0:01:21]} 31. g3 {[%emt 0:00:00]} Qg5 {[%emt 0:01:48]} 32. Qxg5 {[%emt 0:00:00]} hxg5 {[%emt 0:00:34]} 33. Rxf7 {[%emt 0:00:00]} Rxf7 {[%emt 0:00:07]} 34. Rxf7 {[%emt 0:00:00]} Rg7 {[%emt 0:00:15]} 35. Rf8+ {[%emt 0:00:00]} Rg8 {[%emt 0:00:19]} 36. Rf6 {[%emt 0:00:00]} Rg7 {[%emt 0:00:11]} 37. Kf2 {[%emt 0:00:00]} Kg8 {[%emt 0:00:09]} 38. Kf3 {[%emt 0:00:00]} Bd7 {[%emt 0:00:32]} 39. Kg4 {[%emt 0:00:00]} a5 {[%emt 0:01:24]} 40. Rg6 {[%emt 0:00:00]} Rxg6 {[%emt 0:02:27]} 41. Bxg6 {[%emt 0:00:00]} Bb5 {[%emt 0:00:17]} 42. Kxg5 {[%emt 0:00:00]} Kg7 {[%emt 0:00:31]} 43. h4 {[%emt 0:00:00]} a4 {[%emt 0:51:00]} 44. a3 {[%emt 0:11:00]} b6 {[%emt 0:00:00]} 45. h5 {[%emt 0:00:00]} Bd7 {[%emt 0:00:00]} 46. h6+ {[%emt 0:00:00]} Kh8 {[%emt 0:00:00]} 47. Kf6 {[%emt 0:00:00]} b5 {[%emt 0:00:00]} 48. g4 {[%emt 0:00:00]} b4 {[%emt 0:00:00]} 49. axb4 {[%emt 0:00:00]} a3 {[%emt 0:00:00]} 50. bxa3 {[%emt 0:00:00]} Bb5 {[%emt 0:00:00]} 51. Kxe6 {[%emt 0:00:00]} 1-0

[Event "Elegant 1st Division League 2024"]
[Site "Dhaka"]
[Date "2024.07.14"]
[Round "4.21"]
[White "Bhosale Shriraj"]
[Black "Vrashank Chouhan"]
[Result "0-1"]
[Annotator "TA"]
[ECO "A07"]
[WhiteElo "2043"]
[BlackElo "2209"]
[PlyCount "58"]
[EventDate "2024.07.10"]
[EventType "team-tourn"]
[EventCountry "BAN"]
[SourceTitle "playchess.com"]
[Source "ChessBase"]
[SourceQuality "1"]
[TimeControl "5400+30"]

{[%evp 9,58,-20,-25,-35,10,-9,41,6,49,-28,-15,-19,1,15,0,4,17,13,7,18,19,25,35,-126,-12,-122,-127,-129,-116,-196,-192,-200,-199,-198,-190,-575,-469,-490,-242,-241,-243,-224,-211,-237,-224,-446,-427,-1789,-1666,-29995,-29991]} 1. Nf3 {[%emt 0:00:09]} d5 {[%emt 0:00:25]} 2. g3 {[%emt 0:00:13]} Nc6 {[%emt 0:00:28]} 3. Bg2 {[%emt 0:00:51]} e5 {[%emt 0:00:08]} 4. d3 {[%emt 0:00:03]} Nf6 {[%emt 0:00:50]} 5. c3 {[%emt 0:00:19]} a5 {[%emt 0:03:01]} 6. O-O {[%emt 0:00:47]} h6 {[%emt 0:00:58]} 7. Nbd2 {[%emt 0:03:06]} e4 {[%emt 0:04:08]} (7... Be6 $11) 8. Ne1 {[%emt 0:01:31][%cal Rd3e4] White is slightly better.} Bc5 {[%emt 0:00:09]} 9. d4 {[%emt 0:05:15]} (9. dxe4 $14 dxe4 10. Qa4) 9... Bd6 {[%emt 0:03:02]} 10. c4 {[%emt 0:02:32]} dxc4 {[%emt 0:07:59]} (10... Nxd4 11. cxd5 Bc5 12. Nxe4 Nxe4 13. e3 $16 (13. Bxe4 Qe7 $14)) 11. Nxe4 {[%emt 0:00:51]} Nxe4 {[%emt 0:00:45]} 12. Bxe4 {[%emt 0:00:10]} O-O {[%emt 0:00:06]} 13. Bg2 {[%emt 0:00:47]} Re8 {[%emt 0:01:03]} 14. Nc2 {[%emt 0:03:13]} Bg4 {[%emt 0:05:12]} 15. Ne3 {[%emt 0:07:01]} Bh5 {[%emt 0:00:09]} 16. g4 $2 {[%emt 0:01:31]} (16. Bxc6 $14 {stays ahead.} bxc6 17. f3) 16... Bg6 {[%emt 0:01:31]} (16... Qh4 $17 {[%csl Gd6][%cal Rh4h2]} 17. f4 (17. h3 $2 Rxe3 18. fxe3 Bxg4 $19) 17... Rxe3 (17... Bxg4 18. Nxg4 Qxg4 19. e4 $15) 18. Bxe3 Bxg4) 17. d5 {[%emt 0:01:15] [#]} (17. Nxc4 $11 {keeps the balance.} Nxd4 18. Nxd6 Nxe2+ (18... Qxd6 19. e3 $11) 19. Kh1 Qxd6 (19... cxd6 20. Be3 $11) 20. Qxd6 cxd6 21. Be3) 17... Qh4 $1 {[%emt 0:05:02][%csl Gd6][%cal Rh4h2]} 18. h3 {[%emt 0:03:52]} (18. f4 Nb4) 18... Ne5 {[%emt 0:00:43] Black has more active pieces. The white rooks are passive.} 19. Qd4 {[%emt 0:03:05]} (19. f4 Bc5 20. fxe5 Rxe5) (19. a4 $17 {was the only chance.}) 19... h5 $1 $19 {[%emt 0:09:53]} 20. Nxc4 {[%emt 0:15:58]} Nxc4 {[%emt 0:01:25]} (20... hxg4 21. Nxd6 cxd6 22. Bd2 $15) 21. Qxc4 {[%emt 0:00:07]} b5 $1 {[%emt 0:07:56]} 22. Qxb5 {[%emt 0:00:50]} (22. Qd4 {was the crucial defense.}) 22... hxg4 {[%emt 0:02:10]} 23. Qc4 {[%emt 0:02:30] [#]} Bh2+ {[%emt 0:05:39]} 24. Kh1 {[%emt 0:01:23] [#]} (24. Kxh2 $2 g3+ 25. Kg1 Qxc4 $19) 24... Be4 $1 {[%emt 0:00:06][%mdl 512]} 25. Bxe4 {[%emt 0:09:13] aiming for Bg2.} Qxh3 $40 {[%emt 0:00:07][%mdl 128] Black attacks with force.} 26. Bg2 {[%emt 0:00:50]} Qh4 {[%emt 0:05:05] ( -> ...Bd6+)} 27. Rd1 $2 {[%emt 0:01:15] [#]} (27. Bg5 {only move.} Qh5 28. Rfd1 Bd6+ 29. Kg1 Qxg5 30. Rab1) 27... Re5 $1 {[%emt 0:10:04]} (27... Bg3+ 28. Kg1 Bxf2+ 29. Kf1 $11) 28. Be3 {[%emt 0:06:50] [#]} (28. Qxc7 $2 {too greedy.} Bg3+ (28... Rxe2 $2 {loses.} 29. Qxh2 Qf6 30. Qf4 $18) 29. Kg1 Bxf2+ (29... Rxe2 $2 {is the wrong capture.} 30. Qxg3 Qxg3 31. fxg3 $18) 30. Kf1 Ba7) (28. e4 $142 Qxf2 (28... Bg3+ $2 29. Kg1 $19) 29. Rf1 (29. Kxh2 $2 Rh5#)) 28... Rxe3 $1 {[%emt 0:01:05][%mdl 512]} 29. f3 {[%emt 0:04:29] [#]} (29. Rd2 Rae8) 29... Rxf3 $3 {[%emt 0:01:49][%mdl 512] Weighted Error Value: White=1.15/Black=0.30.  Mistake:       	White=7     	Black=3      Inaccurate:     	White=2     	Black=2      OK:         	White=8     	Black=6      Best:        	White=2     	---        Strong:       	---       	Black=2      Brilliant:      	---       	Black=2} 0-1

[Event "Elegant 1st Division League 2024"]
[Site "Dhaka"]
[Date "2024.07.14"]
[Round "4.22"]
[White "Tutul, Dhar"]
[Black "abzid, Rahman"]
[Result "1/2-1/2"]
[Annotator "ChessBase"]
[ECO "E08"]
[WhiteElo "2008"]
[BlackElo "2037"]
[PlyCount "91"]
[EventDate "2024.07.10"]
[EventType "team-tourn"]
[EventCountry "BAN"]
[SourceTitle "playchess.com"]
[Source "ChessBase"]
[SourceQuality "1"]
[TimeControl "5400+30"]

1. d4 {[%emt 0:03:06]} d5 {[%emt 0:00:12]} 2. c4 {[%emt 0:00:02]} e6 {[%emt 0:00:13]} 3. g3 {[%emt 0:00:05]} Nf6 {[%emt 0:00:05]} 4. Bg2 {[%emt 0:00:03]} Be7 {[%emt 0:00:09]} 5. Nf3 {[%emt 0:00:05]} O-O {[%emt 0:00:08]} 6. O-O {[%emt 0:00:08]} Nbd7 {[%emt 0:00:24]} 7. Qc2 {[%emt 0:00:17]} c6 {[%emt 0:00:06]} 8. Rd1 {[%emt 0:00:20]} b6 {[%emt 0:00:30]} 9. b3 {[%emt 0:00:05]} Bb7 {[%emt 0:02:18]} 10. Bb2 {[%emt 0:00:06]} Rc8 {[%emt 0:00:40]} 11. Nc3 {[%emt 0:00:09]} Ba6 {[%emt 0:02:14]} 12. Nd2 {[%emt 0:11:03]} b5 {[%emt 0:01:29]} 13. e4 {[%emt 0:00:09]} bxc4 {[%emt 0:01:59]} 14. e5 {[%emt 0:00:23]} Ne8 {[%emt 0:05:25]} 15. bxc4 {[%emt 0:00:02]} dxc4 {[%emt 0:05:34]} 16. Nce4 {[%emt 0:00:07]} Nb6 {[%emt 0:01:35]} 17. Nc5 {[%emt 0:00:37]} Bxc5 {[%emt 0:01:35]} 18. dxc5 {[%emt 0:00:02]} Nd5 {[%emt 0:02:34]} 19. Nxc4 {[%emt 0:00:45]} Bxc4 {[%emt 0:01:38]} 20. Qxc4 {[%emt 0:00:01]} Qa5 {[%emt 0:01:10]} 21. Rab1 {[%emt 0:05:47]} Nec7 {[%emt 0:01:52]} 22. Bf1 {[%emt 0:08:16]} Rb8 {[%emt 0:01:16]} 23. Bd4 {[%emt 0:00:16]} Nb5 {[%emt 0:00:28]} 24. Bb2 {[%emt 0:18:28]} Nbc7 {[%emt 0:18:40]} 25. Qc2 {[%emt 0:12:28]} Qa4 {[%emt 0:50:46]} 26. a3 Qxa3 {[%emt 0:00:00]} 27. Bd3 {[%emt 0:41:10]} Qa2 28. Bc4 {[%emt 0:00:00]} Qa5 {[%emt 0:00:00]} 29. Ra1 {[%emt 0:00:00]} Qxc5 {[%emt 0:00:00]} 30. Bd4 {[%emt 0:00:00]} Qe7 {[%emt 0:00:00]} 31. Bxd5 {[%emt 0:00:00]} Nxd5 {[%emt 0:00:00]} 32. Bc5 {[%emt 0:00:00]} Qg5 {[%emt 0:00:00]} 33. Bxf8 {[%emt 0:00:00]} Rxf8 {[%emt 0:00:00]} 34. Re1 {[%emt 0:00:00]} Rc8 {[%emt 0:00:00]} 35. Rxa7 {[%emt 0:00:00]} h5 {[%emt 0:00:00]} 36. h4 {[%emt 0:00:00]} Qg4 {[%emt 0:00:00]} 37. Qe4 {[%emt 0:00:00]} c5 {[%emt 0:00:00]} 38. Qxg4 {[%emt 0:00:00]} hxg4 {[%emt 0:00:00]} 39. Rea1 {[%emt 0:00:00]} Kh7 {[%emt 0:00:00]} 40. Rxf7 {[%emt 0:00:00]} c4 {[%emt 0:00:00]} 41. Raa7 {[%emt 0:00:00]} c3 {[%emt 0:00:00]} 42. Rxg7+ {[%emt 0:00:00]} Kh6 {[%emt 0:00:00]} 43. Rh7+ {[%emt 0:01:05]} Kg6 {[%emt 0:00:00]} 44. Raf7 {[%emt 0:01:23]} c2 {[%emt 0:06:12]} 45. Rhg7+ {[%emt 0:00:02]} Kh6 {[%emt 0:00:10]} 46. Rh7+ {[%emt 0:07:00]} 1/2-1/2

[Event "Elegant 1st Division League 2024"]
[Site "Dhaka"]
[Date "2024.07.14"]
[Round "4.23"]
[White "Tajane Ganesh"]
[Black "Dakshita Kumawat"]
[Result "1/2-1/2"]
[Annotator "ChessBase"]
[ECO "C01"]
[WhiteElo "1772"]
[BlackElo "1928"]
[PlyCount "57"]
[EventDate "2024.07.10"]
[EventType "team-tourn"]
[EventCountry "BAN"]
[SourceTitle "playchess.com"]
[Source "ChessBase"]
[SourceQuality "1"]
[TimeControl "5400+30"]

1. e4 {[%emt 0:00:04]} e6 {[%emt 0:01:14]} 2. d4 {[%emt 0:00:08]} d5 {[%emt 0:00:02]} 3. exd5 {[%emt 0:00:10]} exd5 {[%emt 0:00:03]} 4. Bd3 {[%emt 0:00:06]} Bd6 {[%emt 0:00:42]} 5. Nf3 {[%emt 0:00:12]} Ne7 {[%emt 0:00:22]} 6. h3 {[%emt 0:02:49]} Nbc6 {[%emt 0:04:08]} 7. Nc3 {[%emt 0:01:39]} f6 {[%emt 0:05:19]} 8. Nb5 {[%emt 0:06:39]} Be6 {[%emt 0:03:32]} 9. Be3 {[%emt 0:04:20]} a6 {[%emt 0:04:28]} 10. Nxd6+ {[%emt 0:01:06]} Qxd6 {[%emt 0:00:03]} 11. c3 {[%emt 0:04:41]} Ng6 {[%emt 0:10:16]} 12. Qd2 {[%emt 0:09:50]} Nce7 {[%emt 0:04:24]} 13. h4 {[%emt 0:05:59]} h5 {[%emt 0:01:08]} 14. Ng1 {[%emt 0:03:15]} Kf7 {[%emt 0:04:20]} 15. Ne2 {[%emt 0:01:38]} Nf5 {[%emt 0:02:00]} 16. Bf4 {[%emt 0:03:10]} Qd7 {[%emt 0:08:01]} 17. Bg3 {[%emt 0:03:15]} Rae8 {[%emt 0:02:22]} 18. O-O-O {[%emt 0:00:13]} Nge7 {[%emt 0:11:25]} 19. Rhe1 {[%emt 0:04:59]} Nxg3 {[%emt 0:04:19]} 20. Nxg3 {[%emt 0:03:12]} Qd6 {[%emt 0:00:08]} 21. Ne2 {[%emt 0:17:26]} Bf5 {[%emt 0:32:44]} 22. Nf4 {[%emt 0:03:05]} Bxd3 {[%emt 0:00:00]} 23. Nxd3 {[%emt 0:00:08]} Nf5 {[%emt 0:00:00]} 24. g3 {[%emt 0:00:13]} b6 {[%emt 0:00:00]} 25. Rxe8 {[%emt 0:02:41]} Rxe8 {[%emt 0:00:00]} 26. Nf4 {[%emt 0:00:10]} g6 {[%emt 0:00:00]} 27. Re1 {[%emt 0:02:12]} Re6 {[%emt 0:03:00]} 28. Re2 Rxe2 {[%emt 0:00:00]} 29. Qe1 {[%emt 0:00:32]} 1/2-1/2

[Event "Elegant 1st Division League 2024"]
[Site "Dhaka"]
[Date "2024.07.14"]
[Round "4.24"]
[White "Jamal Uddin"]
[Black "Bhuiyan, Golam Mostafa"]
[Result "1-0"]
[Annotator "RC"]
[ECO "E91"]
[WhiteElo "1963"]
[BlackElo "2078"]
[PlyCount "177"]
[EventDate "2024.07.10"]
[EventType "team-tourn"]
[EventCountry "BAN"]
[SourceTitle "playchess.com"]
[Source "ChessBase"]
[SourceQuality "1"]
[TimeControl "5400+30"]

1. c4 {[%emt 0:00:57]} g6 {[%emt 0:00:04]} 2. d4 {[%emt 0:00:36]} Nf6 {[%emt 0:00:06]} 3. Nc3 {[%emt 0:00:08]} Bg7 {[%emt 0:00:01]} 4. e4 {[%emt 0:00:23]} d6 {[%emt 0:00:01]} 5. Be2 {[%emt 0:00:24]} O-O {[%emt 0:00:03]} 6. Bg5 {[%emt 0:00:27]} Nc6 {[%emt 0:01:32]} 7. Nf3 {[%emt 0:03:27]} Bg4 {[%emt 0:01:44]} 8. d5 {[%emt 0:00:48]} Bxf3 {[%emt 0:00:57]} 9. Bxf3 {[%emt 0:00:16]} Ne5 {[%emt 0:00:03]} 10. Be2 {[%emt 0:00:20]} c6 {[%emt 0:00:36]} 11. O-O {[%emt 0:01:47]} a6 {[%emt 0:01:12]} 12. a4 {[%emt 0:02:04]} a5 {[%emt 0:03:00]} 13. Be3 {[%emt 0:02:25]} Qc7 {[%emt 0:00:32]} 14. Rc1 {[%emt 0:00:37]} Ned7 {[%emt 0:02:13]} 15. Qd2 {[%emt 0:01:29]} Nc5 {[%emt 0:00:47]} 16. Qc2 {[%emt 0:01:46]} e5 {[%emt 0:03:20]} 17. Rcd1 {[%emt 0:02:19]} Nfd7 {[%emt 0:02:31]} 18. dxc6 {[%emt 0:02:43]} bxc6 {[%emt 0:00:01]} 19. Qd2 {[%emt 0:00:26]} Nb7 {[%emt 0:00:21]} 20. f4 {[%emt 0:00:45]} Ndc5 {[%emt 0:04:35]} 21. f5 {[%emt 0:00:58]} Nb3 {[%emt 0:01:17]} 22. Qe1 {[%emt 0:01:05]} Rfe8 {[%emt 0:05:30]} 23. f6 {[%emt 0:01:31]} Bh8 {[%emt 0:00:54]} 24. Qh4 {[%emt 0:00:31]} N7c5 {[%emt 0:00:52]} 25. Rf3 {[%emt 0:00:36]} Nd7 {[%emt 0:01:14]} 26. Rdf1 {[%emt 0:06:20]} Re6 {[%emt 0:13:42]} 27. Rh3 {[%emt 0:01:40]} Nxf6 {[%emt 0:09:36]} 28. Bg5 {[%emt 0:00:27]} Qe7 {[%emt 0:04:38]} 29. Bg4 {[%emt 0:00:47]} Qa7+ {[%emt 0:00:03]} 30. Be3 {[%emt 0:00:35]} Qe7 {[%emt 0:01:51]} 31. Bxe6 {[%emt 0:00:54]} fxe6 {[%emt 0:00:06]} 32. Bg5 {[%emt 0:00:28]} Rf8 {[%emt 0:00:20]} 33. Rhf3 {[%emt 0:00:25]} Qa7+ {[%emt 0:01:17]} 34. Qf2 {[%emt 0:01:15]} Qxf2+ {[%emt 0:22:46]} 35. R3xf2 {[%emt 0:00:53]} Nd7 {[%emt 0:03:07]} 36. Rxf8+ {[%emt 0:00:16]} Nxf8 {[%emt 0:11:49]} 37. Be7 {[%emt 0:00:22]} Bg7 {[%emt 0:00:02]} 38. Bxd6 {[%emt 0:00:41]} Nd7 {[%emt 0:01:34]} 39. Rd1 {[%emt 0:01:50]} Bh6 {[%emt 0:00:41]} 40. Kf2 {[%emt 0:01:00]} Kf7 {[%emt 0:01:18]} 41. Bc7 {[%emt 0:01:00]} Ke7 {[%emt 0:00:39]} 42. Bd6+ {[%emt 0:03:13]} Ke8 {[%emt 0:00:24]} 43. Rd3 {[%emt 0:00:49]} Bg7 {[%emt 0:02:37]} 44. g4 {[%emt 0:00:46]} h6 {[%emt 0:00:21]} 45. h4 {[%emt 0:00:45]} Bf6 {[%emt 0:00:11]} 46. Kg3 {[%emt 0:00:35]} Bd8 {[%emt 0:01:46]} 47. h5 {[%emt 0:02:43]} gxh5 {[%emt 0:00:42]} 48. gxh5 {[%emt 0:00:07]} Bb6 {[%emt 0:00:21]} 49. Kh3 {[%emt 0:02:03]} Bd8 {[%emt 0:01:43]} 50. Ne2 {[%emt 0:01:58]} Nbc5 {[%emt 0:00:00]} 51. Bxc5 {[%emt 0:00:15]} Nxc5 {[%emt 0:00:00]} 52. Rd6 {[%emt 0:00:39]} Ke7 {[%emt 0:00:04]} 53. Rxc6 {[%emt 0:01:07]} Nxe4 {[%emt 0:00:01]} 54. Ng3 {[%emt 0:03:08]} Nf2+ {[%emt 0:01:24]} 55. Kg2 {[%emt 0:00:28]} Nd3 {[%emt 0:00:02]} 56. b3 {[%emt 0:00:50]} Kd7 {[%emt 0:00:10]} 57. Ra6 {[%emt 0:00:46]} Nc5 {[%emt 0:00:03]} 58. Ra7+ {[%emt 0:00:28]} Bc7 {[%emt 0:00:05]} 59. Kf3 {[%emt 0:00:40]} Nxb3 {[%emt 0:00:03]} 60. Ne4 {[%emt 0:00:23]} Nd4+ {[%emt 0:00:18]} 61. Kg4 {[%emt 0:01:04]} Nc6 {[%emt 0:02:47]} 62. Rb7 {[%emt 0:02:27]} Nd4 {[%emt 0:00:44]} 63. Rb1 {[%emt 0:02:05]} Nf5 {[%emt 0:00:30]} 64. Rb3 {[%emt 0:00:43]} Kc6 {[%emt 0:00:07]} 65. Rf3 {[%emt 0:00:34]} Bb6 {[%emt 0:00:24]} 66. c5 {[%emt 0:05:23]} Ba7 {[%emt 0:01:08]} 67. Rb3 {[%emt 0:10:36]} Nd4 {[%emt 0:00:24]} 68. Rb1 {[%emt 0:01:48]} Kd5 {[%emt 0:00:15]} 69. Nf6+ {[%emt 0:04:10]} Kc6 {[%emt 0:00:46]} 70. Ng8 {[%emt 0:02:37]} Nf5 {[%emt 0:00:07]} 71. Rb5 {[%emt 0:00:49]} Bxc5 {[%emt 0:00:13]} 72. Rxa5 {[%emt 0:00:07]} e4 {[%emt 0:00:27]} 73. Rb5 {[%emt 0:00:58]} e3 {[%emt 0:00:05]} 74. Rb2 {[%emt 0:00:30]} Bd4 {[%emt 0:00:34]} 75. Ra2 {[%emt 0:01:01]} Kd5 {[%emt 0:00:38]} 76. a5 {[%emt 0:01:40]} Ke4 {[%emt 0:00:35]} 77. a6 {[%emt 0:00:12]} Ba7 {[%emt 0:00:01]} 78. Nf6+ {[%emt 0:01:31]} Kd3 {[%emt 0:00:05]} 79. Ra3+ {[%emt 0:00:28]} Kd4 {[%emt 0:00:18]} 80. Kf3 {[%emt 0:00:29]} e5 {[%emt 0:00:57]} 81. Ng4 {[%emt 0:00:54]} e4+ {[%emt 0:00:03]} 82. Ke2 {[%emt 0:00:34]} Ng3+ {[%emt 0:00:03]} 83. Ke1 {[%emt 0:00:07]} Nf5 {[%emt 0:00:28]} 84. Ra4+ {[%emt 0:01:46]} Kd5 {[%emt 0:01:09]} 85. Nf6+ {[%emt 0:00:19]} Ke5 {[%emt 0:00:17]} 86. Nxe4 {[%emt 0:01:37]} Nd4 {[%emt 0:00:13]} 87. Nc3 {[%emt 0:00:28]} Kf5 {[%emt 0:00:34]} 88. Nb5 {[%emt 0:01:18]} Nf3+ {[%emt 0:02:01]} 89. Kd1 {[%emt 0:00:29]} 1-0

[Event "Elegant 1st Division League 2024"]
[Site "Dhaka"]
[Date "2024.07.15"]
[Round "5.1"]
[White "Vrashank Chouhan"]
[Black "Hossain, Showkat Pollab"]
[Result "1-0"]
[Annotator "RC"]
[ECO "A88"]
[WhiteElo "2209"]
[BlackElo "1990"]
[PlyCount "159"]
[EventDate "2024.07.10"]
[EventType "team-tourn"]
[EventCountry "BAN"]
[SourceTitle "playchess.com"]
[Source "ChessBase"]
[SourceQuality "1"]
[TimeControl "5400+30"]

1. Nf3 {[%emt 0:00:04]} f5 {[%emt 0:01:20]} 2. g3 {[%emt 0:00:54]} Nf6 {[%emt 0:00:11]} 3. Bg2 {[%emt 0:00:07]} g6 {[%emt 0:00:01]} 4. O-O {[%emt 0:00:08]} Bg7 {[%emt 0:00:06]} 5. d4 {[%emt 0:00:06]} O-O {[%emt 0:00:04]} 6. c4 {[%emt 0:00:04]} c6 {[%emt 0:00:05]} 7. Nc3 {[%emt 0:00:14]} d6 {[%emt 0:00:18]} 8. Re1 {[%emt 1:32:53]} Qe8 {[%emt 0:05:06]} 9. d5 {[%emt 0:00:00]} Na6 {[%emt 0:07:26]} 10. h3 {[%emt 0:00:00]} Nc5 {[%emt 1:20:53]} 11. Qc2 {[%emt 0:00:00]} e5 {[%emt 0:00:00]} 12. dxe6 {[%emt 0:00:00]} Bxe6 {[%emt 0:00:00]} 13. Bf4 {[%emt 0:00:00]} Rd8 {[%emt 0:00:00]} 14. Nd2 {[%emt 0:00:00]} Qf7 {[%emt 0:00:00]} 15. Rad1 {[%emt 0:00:00]} Nh5 {[%emt 0:00:00]} 16. Bg5 {[%emt 0:00:00]} Rd7 {[%emt 0:00:00]} 17. b4 {[%emt 0:00:00]} Ne4 {[%emt 0:03:30]} 18. Ncxe4 {[%emt 0:00:00]} fxe4 {[%emt 0:00:00]} 19. Be3 {[%emt 0:00:00]} d5 {[%emt 0:00:00]} 20. Nb3 {[%emt 0:00:00]} dxc4 {[%emt 0:00:00]} 21. Nc5 {[%emt 0:00:00]} Rxd1 {[%emt 0:00:00]} 22. Rxd1 {[%emt 0:00:00]} Nf6 {[%emt 0:00:00]} 23. Nxe4 {[%emt 0:00:00]} Nxe4 {[%emt 0:00:00]} 24. Bxe4 {[%emt 0:00:00]} Bxh3 {[%emt 0:00:00]} 25. Bxa7 {[%emt 0:00:00]} c3 {[%emt 0:00:00]} 26. Bc5 {[%emt 0:00:00]} Ra8 {[%emt 0:00:00]} 27. a3 {[%emt 0:00:00]} Be6 {[%emt 0:00:00]} 28. Qc1 {[%emt 0:00:00]} Bb3 {[%emt 0:00:00]} 29. Bc2 {[%emt 0:00:00]} Bc4 {[%emt 0:00:00]} 30. Qg5 {[%emt 0:00:00]} Bf6 {[%emt 0:00:00]} 31. Qh6 {[%emt 0:00:00]} Bxe2 {[%emt 0:00:00]} 32. Bb3 {[%emt 0:00:00]} Qxb3 {[%emt 0:00:00]} 33. Rd7 {[%emt 0:00:00]} Qd1+ {[%emt 0:00:00]} 34. Rxd1 {[%emt 0:00:00]} Bxd1 {[%emt 0:00:00]} 35. Qf4 {[%emt 0:00:00]} Bg7 {[%emt 0:00:00]} 36. Qc4+ {[%emt 0:01:20]} Kh8 {[%emt 0:00:00]} 37. Bd4 {[%emt 0:04:13]} c2 {[%emt 0:00:00]} 38. a4 {[%emt 0:00:36]} Bxd4 {[%emt 0:00:00]} 39. Qxd4+ {[%emt 0:00:05]} Kg8 {[%emt 0:00:00]} 40. Qc4+ {[%emt 0:00:10]} Kf8 {[%emt 0:00:00]} 41. a5 {[%emt 0:01:05]} Re8 {[%emt 0:00:00]} 42. Qc3 {[%emt 0:00:56]} Re1+ {[%emt 0:00:29]} 43. Kh2 {[%emt 0:00:43]} Kf7 {[%emt 0:01:44]} 44. Qc4+ {[%emt 0:02:37]} Ke7 {[%emt 0:01:11]} 45. Qc5+ {[%emt 0:01:05]} Kd7 {[%emt 0:00:23]} 46. Qd4+ {[%emt 0:01:31]} Kc7 {[%emt 0:10:43]} 47. Qg7+ {[%emt 0:05:09]} Kc8 {[%emt 0:00:00]} 48. Qh8+ {[%emt 0:00:00]} Kd7 {[%emt 0:00:00]} 49. Qxh7+ {[%emt 0:00:00]} Re7 {[%emt 0:00:00]} 50. Qh6 {[%emt 0:00:00]} Bf3 {[%emt 0:00:00]} 51. g4 {[%emt 0:00:00]} Bd1 {[%emt 0:00:00]} 52. Qd2+ {[%emt 0:01:08]} Ke8 {[%emt 0:00:00]} 53. Qc3 Kd7 {[%emt 0:03:30]} 54. Kg3 {[%emt 0:01:29]} Re6 {[%emt 0:00:00]} 55. f4 {[%emt 0:00:38]} Ke7 {[%emt 0:01:00]} 56. Kh4 {[%emt 0:00:19]} Kf7 {[%emt 0:00:30]} 57. Kg5 {[%emt 0:00:22]} Rd6 {[%emt 0:00:00]} 58. f5 {[%emt 0:00:36]} gxf5 {[%emt 0:00:00]} 59. gxf5 {[%emt 0:00:02]} Kg8 {[%emt 0:00:00]} 60. Qc4+ {[%emt 0:01:17]} Kg7 {[%emt 0:02:00]} 61. f6+ {[%emt 0:00:25]} Rxf6 {[%emt 0:00:00]} 62. Qc3 {[%emt 0:00:03]} c1=Q+ {[%emt 0:00:00]} 63. Qxc1 {[%emt 0:00:05]} Rg6+ {[%emt 0:00:00]} 64. Kf4 {[%emt 0:00:12]} Bg4 {[%emt 0:00:00]} 65. Qc3+ {[%emt 0:00:07]} Kf7 {[%emt 0:00:00]} 66. b5 {[%emt 0:00:53]} Bd7 {[%emt 0:00:01]} 67. b6 {[%emt 0:01:26]} Bc8 {[%emt 0:01:05]} 68. Qe5 {[%emt 0:00:49]} Rf6+ {[%emt 0:00:20]} 69. Kg3 {[%emt 0:00:27]} Rg6+ {[%emt 0:00:04]} 70. Kh4 {[%emt 0:00:10]} Rh6+ {[%emt 0:00:20]} 71. Kg5 {[%emt 0:00:09]} Rg6+ {[%emt 0:00:21]} 72. Kh5 {[%emt 0:00:02]} Bg4+ {[%emt 0:00:07]} 73. Kh4 {[%emt 0:00:11]} Be6 {[%emt 0:02:17]} 74. a6 {[%emt 0:00:56]} bxa6 {[%emt 0:00:58]} 75. b7 {[%emt 0:00:04]} Rg4+ {[%emt 0:00:23]} 76. Kh5 {[%emt 0:00:09]} Rb4 {[%emt 0:01:19]} 77. b8=Q {[%emt 0:00:12]} Rxb8 {[%emt 0:00:28]} 78. Qxb8 {[%emt 0:00:06]} Kf6 {[%emt 0:00:38]} 79. Qd6 {[%emt 0:00:25]} Kf5 {[%emt 0:00:23]} 80. Qxc6 {[%emt 0:00:00]} 1-0